bitfinex/quotes_ETHUSD_20241003
["timestamp","ask_amount","ask_price","bid_price","bid_amount"]
[1727977693088,4.26242,2346.1,2345.6,3.7658]
[1727977693089,4.26275,2345.9,2345.6,3.7658]
[1727977693309,4.2626,2346.0,2345.6,5.02908]
[1727977693888,0.852431,2346.2,2345.7,4.263]
[1727977694091,4.26253,2346.1,2345.7,4.08940541]
[1727977694317,4.26261,2346.0,2345.7,0.55]
[1727977694525,4.26293,2345.8,2345.7,0.55]
[1727977694732,4.26293,2345.8,2345.5,0.55]
[1727977694884,4.26277,2345.9,2345.5,0.55]
[1727977695084,4.26255,2346.1,2345.6,4.26328]
[1727977695331,4.26255,2346.1,2345.7,0.55]
[1727977695625,4.26255,2346.1,2345.6,4.26328]
[1727977695626,4.26268,2346.0,2345.6,0.55]
[1727977696013,4.26268,2346.0,2345.6,4.81325]
[1727977696895,4.26277,2345.9,2345.5,4.81345]
[1727977697219,4.26268,2346.0,2345.6,4.26328]
[1727977697419,4.26268,2346.0,2345.7,0.55]
[1727977697581,4.26277,2345.9,2345.7,0.55]
[1727977697780,4.26277,2345.9,2345.6,0.55]
[1727977698485,4.26302,2345.8,2345.5,0.55]
[1727977698719,4.26313,2345.7,2345.5,0.55]
[1727977698937,0.933135,2345.9,2345.1,5.03809]
[1727977699238,4.26378,2345.4,2345.1,0.7739]
[1727977699392,4.26402,2345.2,2344.8,5.03855]
[1727977699594,5.084,2345.6,2344.9,4.26456]
[1727977699595,4.2638,2345.4,2344.9,4.26456]
[1727977699922,4.2632,2345.7,2345.3,0.7739]
[1727977700093,4.26276,2345.9,2345.5,4.26338]
[1727977700286,4.26259,2346.0,2345.6,4.2632]
[1727977700485,4.26259,2346.0,2345.5,4.26338]
[1727977700709,4.26312,2345.7,2345.4,0.55]
[1727977701103,0.8207,2345.7,2345.2,0.55]
[1727977701327,4.26378,2345.4,2345.1,8.2339]
[1727977701542,0.8207,2345.7,2344.8,2.10338124]
[1727977701741,4.26381,2345.4,2344.8,0.7681]
[1727977702037,4.26359,2345.5,2345.1,4.2642]
[1727977702347,4.26406,2345.2,2344.8,5.03279]
[1727977703651,4.26421,2345.1,2344.9,0.55]
[1727977704139,4.26405,2345.2,2344.9,0.55]
[1727977704506,5.09446,2345.3,2344.9,0.55]
[1727977704731,5.09446,2345.3,2344.9,4.81456]
[1727977704934,4.26406,2345.2,2344.9,0.55]
[1727977705324,5.09163101,2345.3,2344.9,4.8145]
[1727977705517,5.09163101,2345.3,2344.9,4.8133234]
[1727977705929,0.82777101,2345.3,2344.9,4.8133234]
[1727977706129,4.26363,2345.5,2345.1,4.26419]
[1727977706330,4.26337,2345.6,2345.2,4.26402]
[1727977706611,4.26337,2345.6,2345.1,4.26419]
[1727977706612,4.26351,2345.5,2345.1,4.26419]
[1727977706908,4.26351,2345.5,2345.0,4.26435]
[1727977707109,4.26351,2345.5,2345.1,4.26416]
[1727977707322,4.26351,2345.5,2345.1,5.22770757]
[1727977707520,4.26369,2345.4,2345.2,0.55]
[1727977707720,4.26361,2345.5,2344.8,0.7681]
[1727977707924,4.2645,2345.0,2344.6,12.53572]
[1727977708145,4.2645,2345.0,2344.6,5.07572]
[1727977708548,4.26428,2345.1,2344.6,9.34069]
[1727977708735,4.26439,2345.0,2344.6,5.07567]
[1727977709110,4.26439,2345.0,2344.7,0.55]
[1727977709423,4.26439,2345.0,2344.4,4.69265]
[1727977709424,4.26486,2344.8,2344.4,5.04258]
[1727977710253,0.8093,2345.2,2344.4,5.04258]
[1727977710410,3.0,2345.5,2344.4,0.7772]
[1727977710613,4.26324,2345.7,2345.1,4.26413]
[1727977710815,5.07237,2345.8,2345.4,4.26364]
[1727977711149,4.26319,2345.7,2345.3,0.55]
[1727977711363,8.52648,2345.7,2345.3,0.55]
[1727977711560,4.2633,2345.6,2345.3,0.55]
[1727977711914,5.07235,2345.8,2345.3,5.372849]
[1727977712115,4.26328,2345.7,2345.3,1.109109]
[1727977712416,4.26328,2345.7,2345.3,5.372919]
[1727977712611,8.52655,2345.7,2345.3,1.109109]
[1727977712812,8.52655,2345.7,2345.3,0.55]
[1727977713291,4.26327,2345.7,2345.3,0.55]
[1727977713436,4.26334,2345.6,2345.3,0.55]
[1727977713753,0.8093,2345.8,2345.0,0.4273]
[1727977713754,4.26383,2345.4,2345.0,0.7697]
[1727977713951,4.26386,2345.3,2345.0,1.699587]
[1727977714245,4.2641,2345.2,2345.0,1.699587]
[1727977714450,4.2641,2345.2,2345.0,0.7697]
[1727977715459,4.26386,2345.3,2345.1,0.55]
[1727977715818,4.26327,2345.7,2345.1,0.55]
[1727977716125,4.26331,2345.6,2345.3,0.55]
[1727977716345,8.52653,2345.7,2345.3,0.55]
[1727977716654,8.52653,2345.7,2345.3,4.81382]
[1727977716655,8.52646,2345.7,2345.3,4.81382]
[1727977717099,4.2626,2346.0,2345.6,4.2632]
[1727977717244,4.26252,2346.1,2345.7,1.03132]
[1727977717445,4.26266,2346.0,2345.7,0.55]
[1727977718564,0.779,2346.4,2345.6,0.55]
[1727977718753,4.26307,2345.8,2345.5,0.55]
[1727977718957,4.26312,2345.7,2345.5,0.55]
[1727977720061,4.2633,2345.6,2345.2,8.2302]
[1727977720289,8.52676,2345.6,2345.2,8.2302]
[1727977720820,4.2633,2345.6,2345.2,8.2302]
[1727977721289,4.2633,2345.6,2345.2,12.49421]
[1727977721595,4.2633,2345.6,2345.3,0.55]
[1727977721975,4.26311,2345.8,2345.3,6.33395781]
[1727977722152,8.52567,2345.9,2345.6,0.55]
[1727977722352,4.26278,2345.9,2345.6,0.55]
[1727977722653,4.26278,2345.9,2345.5,4.81345]
[1727977723260,8.52562,2345.9,2345.5,4.81345]
[1727977723497,4.26278,2345.9,2345.5,0.55]
[1727977723666,4.26295,2345.8,2345.5,0.55]
[1727977724668,4.26294,2345.8,2345.4,4.26361]
[1727977724971,4.26294,2345.8,2345.5,0.55]
[1727977726408,4.26278,2345.9,2345.5,4.81346]
[1727977726590,4.26278,2345.9,2345.7,0.55]
[1727977726776,4.26293,2345.8,2345.7,0.55]
[1727977727366,4.26278,2345.9,2345.7,0.55]
[1727977727367,8.52563,2345.9,2345.7,0.55]
[1727977728006,4.26293,2345.8,2345.7,0.55]
[1727977735860,4.26325,2345.7,2345.3,1.3507]
[1727977735975,4.26343,2345.6,2345.3,1.3507]
[1727977737714,0.782,2345.8,2345.3,1.3507]
[1727977738015,4.26322,2345.7,2345.3,5.61447]
[1727977739007,4.26322,2345.7,2345.3,1.3507]
[1727977739217,4.26322,2345.7,2345.3,5.61453]
[1727977739386,4.26321,2345.7,2345.3,5.61453]
[1727977740510,0.8157,2346.1,2345.5,0.55]
[1727977740739,4.26246,2346.1,2345.7,5.63504]
[1727977740893,4.26246,2346.1,2345.7,5.63513]
[1727977741089,4.26246,2346.1,2345.7,6.198643]
[1727977741324,8.5222,2346.9,2345.7,0.55]
[1727977741591,4.26356,2345.5,2345.1,5.08625]
[1727977742100,4.26375,2345.4,2345.1,0.8221]
[1727977742434,4.26375,2345.4,2344.9,3.0]
[1727977742435,4.26432,2345.1,2344.9,0.8125]
[1727977742598,4.26439,2345.0,2344.7,0.7888]
[1727977742791,4.26439,2345.0,2344.4,0.7888]
[1727977743010,4.26439,2345.0,2344.1,0.7888]
[1727977743011,4.26559,2344.4,2344.1,0.7888]
[1727977743210,4.2653,2344.5,2344.0,1.40052057]
[1727977743211,4.26584,2344.2,2344.0,0.06990154]
[1727977743529,5.03312,2344.5,2344.0,4.33608154]
[1727977743737,5.07991,2344.9,2344.2,4.26582]
[1727977743891,3.0,2345.0,2344.2,4.26582]
[1727977743892,4.2645,2345.0,2344.5,4.2652]
[1727977744090,0.8309,2345.1,2344.5,4.2652]
[1727977744091,5.09521,2345.1,2344.6,4.2651]
[1727977744414,4.26441,2345.0,2344.7,0.55]
[1727977744619,5.09521,2345.1,2344.7,0.55]
[1727977744936,3.0,2345.3,2344.8,0.762]
[1727977744937,4.26404,2345.2,2344.8,0.762]
[1727977745089,4.26433,2345.1,2344.9,0.55]
[1727977745287,4.26433,2345.1,2344.7,0.55]
[1727977745493,4.26397,2345.3,2344.8,4.26465]
[1727977745737,0.7671,2345.4,2345.0,0.55]
[1727977745892,4.26357,2345.5,2345.2,0.55]
[1727977746250,4.2639,2345.3,2344.9,0.55]
[1727977746534,4.26359,2345.5,2344.9,4.8144]
[1727977746714,4.26359,2345.5,2345.0,5.23386399]
[1727977746926,5.07323,2345.7,2345.1,4.81419]
[1727977747092,5.07323,2345.7,2345.3,0.55]
[1727977747296,4.2634,2345.6,2345.3,0.55]
[1727977747929,5.07323,2345.7,2345.3,0.55]
[1727977748100,4.26323,2345.7,2345.3,0.55]
[1727977748305,4.26338,2345.6,2345.3,0.55]
[1727977748638,4.26348,2345.5,2345.3,1.11944862]
[1727977749406,4.26348,2345.5,2345.3,0.55]
[1727977750206,4.26331,2345.6,2345.3,0.55]
[1727977750537,4.26349,2345.5,2345.3,0.55]
[1727977751030,4.26296,2345.8,2345.4,4.26364]
[1727977751231,4.26319,2345.7,2345.3,4.81367]
[1727977751434,4.2627,2346.0,2345.5,0.55]
[1727977751646,4.2627,2346.0,2345.7,0.55]
[1727977751802,8.52538,2346.0,2345.7,0.55]
[1727977752132,4.26279,2345.9,2345.7,0.55]
[1727977752717,3.0,2346.1,2345.7,0.55]
[1727977752926,4.2626,2346.0,2345.7,1.111595]
[1727977753096,4.26278,2345.9,2345.7,1.111595]
[1727977753519,4.26278,2345.9,2345.7,0.55]
[1727977753730,4.2626,2346.0,2345.7,0.55]
[1727977754413,4.26279,2345.9,2345.7,0.55]
[1727977754951,4.26293,2345.8,2345.7,0.55]
[1727977756010,4.26268,2346.0,2345.7,0.55]
[1727977756354,4.26241,2346.1,2345.8,0.55]
[1727977757258,4.26258,2346.0,2345.8,0.55]
[1727977758045,4.26233,2346.2,2345.8,0.55]
[1727977758392,0.7998,2346.5,2345.8,0.55]
[1727977758393,4.2624,2346.1,2345.8,0.55]
[1727977758719,4.26235,2346.2,2345.8,1.535992]
[1727977759256,4.26235,2346.2,2345.8,5.798902]
[1727977759610,4.26235,2346.2,2345.8,1.535992]
[1727977760106,0.7998,2346.5,2345.8,1.535992]
[1727977760311,4.26224,2346.2,2345.8,5.798842]
[1727977760623,4.26224,2346.2,2346.0,0.55]
[1727977760829,4.26196,2346.4,2346.0,0.55]
[1727977761038,4.26203,2346.3,2346.0,0.55]
[1727977761552,4.26228,2346.2,2346.0,0.55]
[1727977761736,4.26203,2346.3,2346.0,0.55]
[1727977761737,4.26204,2346.3,2346.0,0.55]
[1727977762052,4.26238,2346.2,2345.8,0.55]
[1727977762265,4.2624,2346.1,2345.8,0.55]
[1727977762438,4.26224,2346.2,2345.8,5.798849]
[1727977762637,8.52456,2346.2,2345.8,5.798849]
[1727977762840,4.26241,2346.1,2345.7,0.7837]
[1727977763838,4.26316,2345.7,2345.3,5.08436]
[1727977764256,4.26331,2345.6,2345.3,0.8206]
[1727977764577,4.26239,2346.1,2345.0,0.7551]
[1727977764578,4.26421,2345.1,2345.0,0.7551]
[1727977764720,0.426421,2345.1,2344.8,4.26474]
[1727977765065,4.2643,2345.1,2344.7,0.7551]
[1727977765280,4.26404,2345.2,2344.7,0.7551]
[1727977765425,4.26437,2345.1,2344.7,5.02001]
[1727977765622,4.2642,2345.2,2344.7,0.7551]
[1727977765893,4.26453,2345.0,2344.5,5.08569]
[1727977766365,4.26453,2345.0,2344.6,4.26507]
[1727977766664,4.26461,2344.9,2344.5,5.08561]
[1727977766867,5.0204,2345.0,2344.5,5.0856]
[1727977767179,4.26468,2344.9,2344.5,0.8204]
[1727977767535,5.0204,2345.0,2344.5,5.08567]
[1727977767731,5.0204,2345.0,2344.5,9.35088]
[1727977767977,0.756,2345.0,2344.6,4.26511]
[1727977768162,5.02684,2345.2,2344.6,4.26511]
[1727977768633,5.02684,2345.2,2344.8,4.26475]
[1727977768830,8.02632,2345.5,2345.0,4.26428]
[1727977769031,5.02574,2345.8,2345.2,4.81388]
[1727977769276,4.26331,2345.6,2345.2,5.375728]
[1727977769670,4.26315,2345.7,2345.2,9.639608]
[1727977770084,0.8174,2346.0,2345.2,9.46821439]
[1727977770238,0.8174,2346.0,2345.4,4.64248639]
[1727977770439,4.26272,2346.0,2345.6,0.55]
[1727977770683,4.26287,2345.9,2345.6,0.55]
[1727977771178,4.26293,2345.8,2345.6,0.55]
[1727977771677,4.26284,2345.9,2345.6,0.55]
[1727977773278,4.2627,2346.0,2345.6,0.55]
[1727977773484,4.26194,2346.4,2345.9,0.55]
[1727977773485,4.26196,2346.4,2345.9,0.55]
[1727977773701,4.26214,2346.3,2345.9,0.55]
[1727977774176,4.26188,2346.4,2346.0,0.7518]
[1727977774379,4.2621,2346.3,2346.1,0.55]
[1727977774584,4.26188,2346.4,2346.1,0.55]
[1727977775080,4.26204,2346.3,2346.1,0.55]
[1727977776483,4.26205,2346.3,2346.1,0.55]
[1727977776986,8.52419,2346.3,2346.1,0.55]
[1727977777282,4.26221,2346.2,2346.1,0.55]
[1727977778683,4.26265,2346.0,2345.6,0.55]
[1727977778987,4.26265,2346.0,2345.6,6.548391]
[1727977779548,4.26194,2346.4,2345.8,4.26292]
[1727977779788,4.26194,2346.4,2346.1,0.55]
[1727977779789,4.26221,2346.2,2346.1,0.55]
[1727977780262,4.26254,2346.1,2345.9,0.55]
[1727977780692,4.26221,2346.2,2345.9,0.55]
[1727977780982,4.26249,2346.1,2345.9,0.55]
[1727977781343,4.26257,2346.0,2345.7,0.55]
[1727977781551,4.26257,2346.0,2345.6,2.545591]
[1727977781552,4.26265,2346.0,2345.6,5.07366]
[1727977781773,4.26265,2346.0,2345.6,6.327026]
[1727977781957,8.52535,2346.0,2345.6,6.327026]
[1727977782165,4.26231,2346.2,2345.7,4.2631]
[1727977782676,4.26215,2346.3,2345.6,2.063766]
[1727977783062,4.26241,2346.1,2345.7,0.55]
[1727977783406,4.26289,2345.9,2345.7,0.55]
[1727977783983,4.2631,2345.8,2345.4,0.8263]
[1727977784200,4.26285,2345.9,2345.4,5.08993]
[1727977784361,4.26312,2345.7,2345.4,0.8263]
[1727977785344,4.26312,2345.7,2345.5,0.55]
[1727977787358,4.26294,2345.8,2345.5,0.55]
[1727977787770,4.26294,2345.8,2345.4,4.81364]
[1727977788351,8.52573,2345.9,2345.4,4.81364]
[1727977789401,4.26286,2345.9,2345.5,4.26345]
[1727977789619,4.26286,2345.9,2345.6,1.3579]
[1727977789780,8.52575,2345.9,2345.6,1.3579]
[1727977789981,4.26286,2345.9,2345.6,1.3579]
[1727977790196,4.26295,2345.8,2345.6,1.3579]
[1727977790632,4.26295,2345.8,2345.5,0.55]
[1727977790916,4.26294,2345.8,2345.4,0.55]
[1727977791124,4.26294,2345.8,2345.4,5.375431]
[1727977791718,4.2626,2346.0,2345.6,8.90362451]
[1727977792029,4.26226,2346.2,2345.9,0.55]
[1727977792215,3.0,2346.3,2345.9,1.94711745]
[1727977792527,4.26173,2346.5,2346.1,4.81225]
[1727977792691,4.26173,2346.5,2346.1,0.55]
[1727977793028,4.26185,2346.4,2346.1,2.0870552]
[1727977794021,4.26205,2346.3,2346.1,2.0870552]
[1727977794180,4.26205,2346.3,2346.1,0.55]
[1727977794619,4.26185,2346.4,2346.1,0.55]
[1727977794824,8.52385,2346.4,2346.1,0.55]
[1727977795004,4.26209,2346.3,2346.1,0.55]
[1727977795519,4.26245,2346.1,2345.7,12.54138]
[1727977795722,4.26245,2346.1,2345.7,14.63090145]
[1727977795882,0.7771,2346.6,2345.9,4.2627]
[1727977795883,4.26207,2346.3,2345.9,4.2627]
[1727977796285,4.2624,2346.1,2345.7,7.17094145]
[1727977796486,4.2624,2346.1,2345.7,2.90792145]
[1727977796705,4.26258,2346.0,2345.7,0.8184]
[1727977797930,4.26258,2346.0,2345.8,0.55]
[1727977798740,4.26325,2345.7,2345.4,0.7856]
[1727977799133,4.26286,2345.9,2345.4,5.04918]
[1727977799452,4.26286,2345.9,2345.5,4.26341]
[1727977800029,4.26286,2345.9,2345.6,0.55]
[1727977800419,4.2633,2345.6,2345.5,0.55]
[1727977800623,0.7832,2345.8,2345.2,0.7778]
[1727977800797,4.26342,2345.6,2344.9,0.7778]
[1727977801000,4.26422,2345.1,2344.9,0.7778]
[1727977801239,4.26422,2345.1,2344.6,5.04291]
[1727977801402,4.26396,2345.3,2344.8,4.26464]
[1727977801724,4.2632,2345.7,2345.0,5.84936312]
[1727977801929,4.2632,2345.7,2345.2,4.26392]
[1727977802130,7.2624,2346.1,2345.5,4.26336]
[1727977802131,4.26261,2346.0,2345.5,4.26336]
[1727977802303,4.26297,2345.8,2345.4,0.8137]
[1727977802643,4.2626,2346.0,2345.6,4.26321]
[1727977802813,4.2626,2346.0,2345.7,0.55]
[1727977803153,4.26257,2346.0,2345.6,0.55]
[1727977803305,4.26257,2346.0,2345.6,1.112708]
[1727977804542,4.26239,2346.1,2345.6,1.112708]
[1727977804750,4.26285,2345.9,2345.5,0.55]
[1727977805142,8.05174,2346.3,2345.4,0.8137]
[1727977805143,0.7896,2346.3,2345.4,0.8137]
[1727977805376,0.8172,2345.8,2345.1,8.2576]
[1727977805750,4.26402,2345.2,2345.1,8.2576]
[1727977806080,4.26387,2345.3,2345.1,1.66321137]
[1727977806267,4.26387,2345.3,2345.1,0.7976]
[1727977807042,4.26368,2345.4,2345.2,0.55]
[1727977807437,4.26357,2345.5,2345.2,0.55]
[1727977807642,4.26284,2345.9,2345.5,5.03388]
[1727977807879,4.26284,2345.9,2345.6,0.55]
[1727977808397,4.26211,2346.3,2345.9,4.26268]
[1727977808595,4.26211,2346.3,2345.6,6.57040212]
[1727977808596,0.6476,2345.9,2345.6,10.28357212]
[1727977808883,0.6476,2345.9,2345.6,5.248029]
[1727977809186,0.6476,2345.9,2345.6,0.984739]
[1727977809479,4.91045,2345.9,2345.5,4.26337]
[1727977809692,4.26297,2345.8,2345.3,4.26377]
[1727977809854,4.2632,2345.7,2345.3,4.26376]
[1727977810465,4.26332,2345.6,2345.2,4.264]
[1727977810652,4.26306,2345.8,2345.0,8.77241144]
[1727977810859,4.26376,2345.4,2344.9,9.84135144]
[1727977811069,4.26376,2345.4,2345.0,1.31241144]
[1727977811391,5.05656,2345.4,2345.0,4.26436]
[1727977811544,5.05656,2345.4,2345.0,6.38547144]
[1727977811742,5.05656,2345.4,2345.0,2.12111144]
[1727977811943,4.26407,2345.2,2345.0,1.31241144]
[1727977812185,4.26385,2345.3,2344.9,1.31241144]
[1727977812386,4.26406,2345.2,2344.9,1.31241144]
[1727977812852,4.26404,2345.2,2344.9,1.31241144]
[1727977813252,4.26436,2345.1,2344.9,1.31241144]
[1727977813484,4.26439,2345.0,2344.8,1.31241144]
[1727977813685,4.26457,2344.9,2344.7,1.74988192]
[1727977813852,4.26457,2344.9,2344.8,1.32282813]
[1727977814057,4.26424,2345.1,2344.7,1.74988192]
[1727977814269,4.26424,2345.1,2344.8,1.32274706]
[1727977814688,5.08363,2345.2,2344.8,1.32274706]
[1727977814889,4.26422,2345.1,2344.7,5.58766706]
[1727977815188,4.26422,2345.1,2344.8,1.87274706]
[1727977815545,4.26422,2345.1,2344.8,0.55]
[1727977816389,4.26446,2345.0,2344.7,1.32274706]
[1727977816682,4.26446,2345.0,2344.8,1.32274706]
[1727977817095,4.26413,2345.2,2344.8,5.64111]
[1727977817267,4.26422,2345.1,2344.7,1.32274706]
[1727977817450,4.26475,2344.8,2344.7,1.32274706]
[1727977817692,4.26493,2344.7,2344.6,1.32274706]
[1727977817900,4.26493,2344.7,2344.4,1.74988192]
[1727977817901,4.26475,2344.8,2344.5,1.32274706]
[1727977818063,4.26455,2345.0,2344.5,4.26517]
[1727977818064,8.52905,2345.0,2344.5,4.26517]
[1727977818252,4.26467,2344.9,2344.5,4.26517]
[1727977818455,4.26467,2344.9,2344.4,1.32274706]
[1727977818456,4.26493,2344.8,2344.4,1.32274706]
[1727977818656,4.26493,2344.8,2344.5,1.32274706]
[1727977818872,4.26493,2344.8,2344.4,5.58816706]
[1727977819065,4.690692,2345.1,2344.4,2.78623574]
[1727977819264,4.690692,2345.1,2344.7,4.26493]
[1727977819801,5.05658,2345.4,2344.6,4.26495]
[1727977819802,4.264,2345.3,2344.9,4.26453]
[1727977820155,5.84153,2345.4,2345.0,4.81438]
[1727977820351,0.7928,2345.4,2345.0,4.81438]
[1727977820596,0.7928,2345.4,2344.7,1.32274706]
[1727977820597,0.7928,2345.4,2345.2,0.55]
[1727977820804,0.7928,2345.4,2345.3,0.55]
[1727977821256,0.7928,2345.4,2345.3,1.114254]
[1727977821693,0.7928,2345.4,2345.3,0.55]
[1727977823083,4.26392,2345.3,2345.1,1.32274706]
[1727977823375,4.26421,2345.1,2345.0,1.32274706]
[1727977823821,4.26439,2345.0,2344.9,1.32274706]
[1727977824092,4.690829,2345.0,2344.8,1.32274706]
[1727977824301,4.26457,2344.9,2344.8,1.32274706]
[1727977824516,4.26475,2344.8,2344.7,1.32274706]
[1727977824805,4.26475,2344.8,2344.7,1.32427067]
[1727977825006,5.05727,2344.9,2344.7,1.32419932]
[1727977825184,4.26441,2345.0,2344.7,1.32419932]
[1727977825381,8.52888,2345.0,2344.7,1.32419932]
[1727977825598,4.26441,2345.0,2344.7,1.32419932]
[1727977826695,4.26443,2345.0,2344.7,1.32419932]
[1727977826895,4.26459,2344.9,2344.7,1.32419932]
[1727977827096,4.26493,2344.7,2344.6,1.32419932]
[1727977827486,4.26475,2344.8,2344.6,1.74988192]
[1727977827686,4.26475,2344.8,2344.7,1.3253037]
[1727977828573,4.26493,2344.7,2344.6,1.3253037]
[1727977828768,4.26493,2344.7,2344.5,1.74988192]
[1727977828769,5.200458,2344.7,2344.5,1.3253037]
[1727977828976,4.26511,2344.6,2344.5,1.3253037]
[1727977829214,4.26477,2344.8,2344.5,1.3253037]
[1727977829512,4.26467,2344.9,2344.6,0.7828]
[1727977829513,4.26459,2344.9,2344.6,0.7828]
[1727977829683,4.26442,2345.0,2344.7,0.55]
[1727977829907,8.52897,2345.0,2344.7,0.55]
[1727977830296,4.26442,2345.0,2344.7,0.55]
[1727977830928,4.26416,2345.2,2344.8,4.26473]
[1727977831135,8.52823,2345.2,2344.8,4.26473]
[1727977831499,8.52823,2345.2,2344.5,1.3253037]
[1727977831500,4.26453,2345.0,2344.5,1.3253037]
[1727977831699,4.26483,2344.8,2344.6,1.3253037]
[1727977832101,4.26453,2345.0,2344.7,0.07435493]
[1727977832310,0.7928,2345.4,2345.1,0.55]
[1727977832833,5.05659,2345.4,2345.1,0.55]
[1727977833054,4.26391,2345.3,2345.0,0.55]
[1727977833199,4.26403,2345.2,2344.9,0.55]
[1727977833399,4.26387,2345.3,2344.9,4.81447]
[1727977833896,5.05652,2345.4,2344.9,4.81447]
[1727977834101,0.7928,2345.4,2345.1,5.58683]
[1727977834559,5.05646,2345.4,2345.1,1.3227]
[1727977834703,4.26391,2345.3,2344.9,4.26455]
[1727977834906,8.52787,2345.3,2344.9,4.26455]
[1727977835204,4.26424,2345.1,2344.8,0.7898]
[1727977835538,4.26465,2344.9,2344.7,0.07435493]
[1727977835746,4.26458,2344.9,2344.7,0.07435493]
[1727977836737,4.26443,2345.0,2344.7,0.07435493]
[1727977837130,0.8281,2345.2,2344.7,0.07435493]
[1727977837330,4.26458,2344.9,2344.7,0.07435493]
[1727977837921,4.26475,2344.8,2344.7,0.07435493]
[1727977838848,4.26458,2344.9,2344.7,0.07435493]
[1727977838849,4.26464,2344.9,2344.7,0.07435493]
[1727977839554,0.8281,2345.2,2344.7,0.07435493]
[1727977839764,4.2644,2345.0,2344.7,0.07435493]
[1727977840617,4.26475,2344.8,2344.7,0.07435493]
[1727977840858,4.26464,2344.9,2344.7,0.07435493]
[1727977842018,4.26475,2344.8,2344.7,0.07435493]
[1727977842250,5.933389,2344.8,2344.7,0.07435493]
[1727977843124,4.26464,2344.9,2344.7,0.07435493]
[1727977843125,4.26471,2344.9,2344.7,0.07435493]
[1727977843760,1.14951,2345.1,2344.7,0.07435493]
[1727977844039,4.26469,2344.9,2344.7,0.07435493]
[1727977844463,8.52944,2344.9,2344.7,0.07435493]
[1727977844670,4.26475,2344.8,2344.7,0.07435493]
[1727977845153,5.117694,2344.8,2344.7,0.07435493]
[1727977846521,5.927294,2344.8,2344.7,0.07435493]
[1727977846826,8.927294,2344.8,2344.7,0.07435493]
[1727977859648,8.117694,2344.8,2344.7,0.07435493]
[1727977860698,8.911294,2344.8,2344.7,0.07435493]
[1727977860902,7.26475,2344.8,2344.7,0.07435493]
[1727977861460,4.26475,2344.8,2344.7,0.07435493]
[1727977861997,4.26458,2344.9,2344.8,0.8112]
[1727977862355,1.5898,2345.4,2344.8,0.8112]
[1727977862356,4.26433,2345.1,2344.8,0.8112]
[1727977862699,4.26457,2344.9,2344.8,1.3612]
[1727977862853,4.26452,2345.0,2344.8,1.3612]
[1727977863061,4.26449,2345.0,2344.8,1.3612]
[1727977863737,4.26438,2345.1,2344.8,1.3612]
[1727977864006,4.26446,2345.0,2344.8,1.93125949]
[1727977864168,4.26457,2344.9,2344.8,1.93125949]
[1727977864495,4.26475,2344.8,2344.7,0.07435493]
[1727977865053,4.26457,2344.9,2344.7,0.07435493]
[1727977865258,4.26475,2344.8,2344.7,0.07435493]
[1727977867634,7.26475,2344.8,2344.7,0.07435493]
[1727977867799,8.02905,2344.8,2344.7,0.07435493]
[1727977867999,9.258412,2344.8,2344.7,0.07435493]
[1727977876225,12.859068,2344.8,2344.7,0.07435493]
[1727977876548,13.98161491,2344.8,2344.7,0.07435493]
[1727977877224,13.409068,2344.8,2344.7,0.07435493]
[1727977877421,9.258412,2344.8,2344.7,0.07435493]
[1727977878350,21.20662891,2344.8,2344.7,0.07435493]
[1727977879025,21.75662891,2344.8,2344.7,0.07435493]
[1727977880472,9.258412,2344.8,2344.7,0.07435493]
[1727977880919,6.258412,2344.8,2344.7,0.07435493]
[1727977883265,9.258412,2344.8,2344.7,0.07435493]
[1727977884146,8.494112,2344.8,2344.7,0.07435493]
[1727977884353,7.26475,2344.8,2344.7,0.07435493]
[1727977884560,5.52858167,2345.3,2344.7,0.07435493]
[1727977884561,4.2645,2345.0,2344.7,0.07435493]
[1727977884863,4.2645,2345.0,2344.8,0.7835]
[1727977885026,4.2646,2344.9,2344.8,0.7835]
[1727977889068,4.26422,2345.1,2344.8,0.7835]
[1727977889273,4.26422,2345.1,2344.9,0.8014]
[1727977889841,3.7928,2345.4,2344.9,0.8014]
[1727977890059,4.26414,2345.2,2344.9,0.8014]
[1727977890591,0.7928,2345.4,2345.3,0.8014]
[1727977890892,0.7928,2345.4,2345.3,2.339359]
[1727977891204,0.7928,2345.4,2345.3,6.603199]
[1727977891350,0.7928,2345.4,2345.3,2.339359]
[1727977892491,5.05646,2345.4,2345.3,0.8014]
[1727977893772,4.26435,2345.1,2344.7,0.07435493]
[1727977894102,4.26412,2345.2,2344.7,4.33925493]
[1727977894252,8.52829,2345.2,2344.8,1.63332549]
[1727977894596,4.26424,2345.1,2344.8,1.63332549]
[1727977894766,4.26412,2345.2,2344.8,0.7729]
[1727977894965,4.2643,2345.1,2344.8,0.7729]
[1727977895280,4.26412,2345.2,2344.8,0.7729]
[1727977895999,5.05658,2345.4,2345.0,0.7695]
[1727977896163,5.05658,2345.4,2345.1,0.7695]
[1727977896164,0.7928,2345.4,2345.1,0.7695]
[1727977896583,5.05651,2345.4,2345.1,0.7695]
[1727977896781,0.7928,2345.4,2345.1,1.327896]
[1727977896958,0.7928,2345.4,2345.1,5.592016]
[1727977897159,0.7928,2345.4,2345.2,0.7599]
[1727977898313,5.05646,2345.4,2345.2,0.7599]
[1727977902967,0.7928,2345.4,2345.2,0.7599]
[1727977903177,0.7928,2345.4,2345.3,5.57264]